[Event "*** Titled Tuesday 3|2 Blitz (Late)"]
[Site "Chess.com"]
[Date "2017.01.03"]
[Round "2"]
[White "QuintilianoR"]
[Black "SabinaFoisor"]
[Result "1-0"]
[WhiteElo "2524"]
[BlackElo "2198"]
[TimeControl "180+2"]
[EndTime "17:19:46 PST"]
[Termination "QuintilianoR won by resignation"]

1. Nf3 {[%clk 0:03:02]} 1... d5 {[%clk 0:02:44]} 2. b3 {[%clk 0:03:01.9]} 2...
c5 {[%clk 0:02:43.9]} 3. e3 {[%clk 0:02:59.7]} 3... a6 {[%clk 0:02:44.1]} 4. Bb2
{[%clk 0:02:59.9]} 4... e6 {[%clk 0:02:43.2]} 5. c4 {[%clk 0:03:00.7]} 5... Nc6
{[%clk 0:02:44]} 6. d4 {[%clk 0:03:01.5]} 6... cxd4 {[%clk 0:02:44.5]} 7. exd4
{[%clk 0:03:02.3]} 7... Nf6 {[%clk 0:02:45.2]} 8. Nbd2 {[%clk 0:03:03.2]} 8...
Bb4 {[%clk 0:02:45.3]} 9. Bd3 {[%clk 0:03:03.4]} 9... O-O {[%clk 0:02:45.2]} 10.
O-O {[%clk 0:03:04.3]} 10... h6 {[%clk 0:02:35.1]} 11. a3 {[%clk 0:02:59.8]}
11... Bxd2 {[%clk 0:02:21.9]} 12. Qxd2 {[%clk 0:03:01.7]} 12... Ne4 {[%clk
0:02:22.3]} 13. Qe2 {[%clk 0:02:59.2]} 13... f5 {[%clk 0:02:11.6]} 14. Rfd1
{[%clk 0:02:29.9]} 14... Bd7 {[%clk 0:02:02.3]} 15. Ne5 {[%clk 0:02:29.3]} 15...
Be8 {[%clk 0:01:59.2]} 16. f3 {[%clk 0:02:27.9]} 16... Nxe5 {[%clk 0:01:46.2]}
17. dxe5 {[%clk 0:02:27.7]} 17... Qb6+ {[%clk 0:01:36.3]} 18. Kf1 {[%clk
0:02:22.5]} 18... Qxb3 {[%clk 0:01:07.5]} 19. cxd5 {[%clk 0:02:22.9]} 19... exd5
{[%clk 0:01:02.7]} 20. Rac1 {[%clk 0:02:09.7]} 20... Bh5 {[%clk 0:00:57.2]} 21.
Bd4 {[%clk 0:01:55.5]} 21... Rac8 {[%clk 0:00:48.5]} 22. Kg1 {[%clk 0:01:46]}
22... Rxc1 {[%clk 0:00:44.2]} 23. Rxc1 {[%clk 0:01:47.9]} 23... Qxa3 {[%clk
0:00:43.9]} 24. Qc2 {[%clk 0:01:41.4]} 24... Ng5 {[%clk 0:00:38.8]} 25. Bc5
{[%clk 0:01:41.7]} 25... Qa5 {[%clk 0:00:32.6]} 26. Bxf8 {[%clk 0:01:42.6]}
26... Kxf8 {[%clk 0:00:31.7]} 27. Qc8+ {[%clk 0:01:43.3]} 27... Be8 {[%clk
0:00:29.4]} 28. Qxf5+ {[%clk 0:01:44.2]} 28... Ke7 {[%clk 0:00:23.2]} 29. h4
{[%clk 0:01:43.1]} 29... Ne6 {[%clk 0:00:20.1]} 30. Kh2 {[%clk 0:01:25.8]} 30...
Qb6 {[%clk 0:00:21.4]} 31. Rb1 {[%clk 0:01:24.4]} 31... Qc6 {[%clk 0:00:20.1]}
32. f4 {[%clk 0:01:25.2]} 32... b5 {[%clk 0:00:20.4]} 33. Qg4 {[%clk 0:01:26.3]}
33... Qc3 {[%clk 0:00:18.1]} 34. Bf5 {[%clk 0:01:27]} 34... Bf7 {[%clk
0:00:15.4]} 35. Bxe6 {[%clk 0:01:27.7]} 35... Bxe6 {[%clk 0:00:17.3]} 36. Qxg7+
{[%clk 0:01:28.8]} 36... Bf7 {[%clk 0:00:18.6]} 37. Qf6+ {[%clk 0:01:29.7]}
37... Ke8 {[%clk 0:00:17.9]} 38. Qxa6 {[%clk 0:01:28.2]} 38... Qd2 {[%clk
0:00:13.5]} 39. Qxb5+ {[%clk 0:01:28.8]} 39... Kf8 {[%clk 0:00:13.5]} 40. Qb4+
{[%clk 0:01:30]} 40... Qxb4 {[%clk 0:00:12.7]} 41. Rxb4 {[%clk 0:01:31.9]} 41...
Be6 {[%clk 0:00:09.1]} 42. h5 {[%clk 0:01:32.2]} 42... Kf7 {[%clk 0:00:09.7]}
43. Kg3 {[%clk 0:01:32]} 43... Bf5 {[%clk 0:00:09]} 44. Kh4 {[%clk 0:01:32.8]}
44... Be4 {[%clk 0:00:09.2]} 45. g4 {[%clk 0:01:33.9]} 45... Bf3 {[%clk
0:00:09.9]} 46. Rb6 {[%clk 0:01:34.9]} 46... d4 {[%clk 0:00:09.7]} 47. Rxh6
{[%clk 0:01:35.4]} 47... d3 {[%clk 0:00:10.8]} 48. Rd6 {[%clk 0:01:36.5]} 1-0

[Event "*** Titled Tuesday 3|2 Blitz (Late)"]
[Site "Chess.com"]
[Date "2017.01.03"]
[Round "2"]
[White "Caminator2000"]
[Black "jbj"]
[Result "1/2-1/2"]
[WhiteElo "2201"]
[BlackElo "2333"]
[TimeControl "180+2"]
[EndTime "17:20:00 PST"]
[Termination "Game drawn by agreement"]

1. d4 {[%clk 0:03:02]} 1... Nf6 {[%clk 0:03:00.5]} 2. c4 {[%clk 0:03:02.8]} 2...
e6 {[%clk 0:03:00]} 3. Nf3 {[%clk 0:03:03.3]} 3... b6 {[%clk 0:02:54.1]} 4. g3
{[%clk 0:03:03.9]} 4... Ba6 {[%clk 0:02:54.6]} 5. b3 {[%clk 0:03:04.5]} 5... b5
{[%clk 0:02:55.4]} 6. Bg2 {[%clk 0:02:53.4]} 6... bxc4 {[%clk 0:02:53.4]} 7. Ne5
{[%clk 0:02:54.3]} 7... d5 {[%clk 0:02:53.1]} 8. bxc4 {[%clk 0:02:54.5]} 8...
Bb4+ {[%clk 0:02:51.3]} 9. Bd2 {[%clk 0:02:54.9]} 9... Bxd2+ {[%clk 0:02:51.6]}
10. Nxd2 {[%clk 0:02:54.9]} 10... O-O {[%clk 0:02:51.9]} 11. O-O {[%clk
0:02:54.5]} 11... c5 {[%clk 0:02:47.3]} 12. Nb3 {[%clk 0:02:43.4]} 12... Nbd7
{[%clk 0:02:41.1]} 13. Nxd7 {[%clk 0:02:40.1]} 13... Nxd7 {[%clk 0:02:40.7]} 14.
cxd5 {[%clk 0:02:40.6]} 14... exd5 {[%clk 0:02:40]} 15. Bxd5 {[%clk 0:02:23.2]}
15... Rc8 {[%clk 0:02:40]} 16. dxc5 {[%clk 0:02:22.3]} 16... Nxc5 {[%clk
0:02:40.6]} 17. Bf3 {[%clk 0:02:21.8]} 17... Qe7 {[%clk 0:02:37.6]} 18. Nxc5
{[%clk 0:02:18.4]} 18... Rxc5 {[%clk 0:02:37.9]} 19. Qa4 {[%clk 0:02:17.5]}
19... Bxe2 {[%clk 0:02:32.6]} 20. Rfe1 {[%clk 0:02:18]} 20... Re5 {[%clk
0:02:02.5]} 21. Bxe2 {[%clk 0:02:05.4]} 21... Rxe2 {[%clk 0:02:04.4]} 22. Rxe2
{[%clk 0:02:06.9]} 22... Qxe2 {[%clk 0:02:05.6]} 23. Qxa7 {[%clk 0:02:08.1]}
23... Rd8 {[%clk 0:01:59.7]} 24. h3 {[%clk 0:01:47.2]} 24... h5 {[%clk 0:01:59]}
25. a4 {[%clk 0:01:42.7]} 25... h4 {[%clk 0:01:55.7]} 26. Qe3 {[%clk 0:01:34.1]}
26... Rd1+ {[%clk 0:01:53.1]} 27. Rxd1 {[%clk 0:01:30.1]} 27... Qxd1+ {[%clk
0:01:55]} 28. Kg2 {[%clk 0:01:30.5]} 28... Qxa4 {[%clk 0:01:55.8]} 29. gxh4
{[%clk 0:01:28.7]} 29... Qxh4 {[%clk 0:01:56.6]} 30. Qe8+ {[%clk 0:01:29.6]}
30... Kh7 {[%clk 0:01:55.5]} 31. Qxf7 {[%clk 0:01:29.3]} 31... Qg5+ {[%clk
0:01:54.9]} 32. Kh1 {[%clk 0:01:26.5]} 32... Qe5 {[%clk 0:01:41.4]} 33. Qf3
{[%clk 0:01:23.3]} 33... Kg8 {[%clk 0:01:34.8]} 34. Qb3+ {[%clk 0:01:23.5]}
34... Kh7 {[%clk 0:01:32.4]} 35. Kg2 {[%clk 0:01:24.6]} 35... Qg5+ {[%clk
0:01:30.4]} 36. Qg3 {[%clk 0:01:25.7]} 36... Qd5+ {[%clk 0:01:31.1]} 37. Qf3
{[%clk 0:01:25.3]} 37... Qg5+ {[%clk 0:01:31.8]} 38. Qg3 {[%clk 0:01:25.3]}
38... Qd5+ {[%clk 0:01:32.6]} 39. Kh2 {[%clk 0:01:26.8]} 39... Qe4 {[%clk
0:01:29.4]} 40. h4 {[%clk 0:01:26.6]} 40... Qf5 {[%clk 0:01:26.9]} 41. Qe3
{[%clk 0:01:25.6]} 41... Qg4 {[%clk 0:01:22.6]} 42. Qd3+ {[%clk 0:01:23.9]}
42... Kg8 {[%clk 0:01:22.1]} 43. Qd8+ {[%clk 0:01:23.3]} 43... Kh7 {[%clk
0:01:22.1]} 44. Qg5 {[%clk 0:01:19.7]} 44... Qf3 {[%clk 0:01:20.3]} 45. h5
{[%clk 0:01:18.2]} 45... Qxf2+ {[%clk 0:01:20.5]} 46. Kh3 {[%clk 0:01:18.8]}
46... Qf3+ {[%clk 0:01:19.3]} 47. Kh2 {[%clk 0:01:19.5]} 47... Qe4 {[%clk
0:01:19.9]} 48. Kg3 {[%clk 0:01:19.9]} 48... Qd3+ {[%clk 0:01:18.6]} 49. Kh2
{[%clk 0:01:20.3]} 49... Qc2+ {[%clk 0:01:18.3]} 50. Kh1 {[%clk 0:01:20.7]}
50... Qe4+ {[%clk 0:01:18.2]} 51. Kh2 {[%clk 0:01:21.8]} 51... Qf3 {[%clk
0:01:19.1]} 52. Qg6+ {[%clk 0:01:21.4]} 52... Kh8 {[%clk 0:01:18.3]} 53. Qe8+
{[%clk 0:01:21.7]} 53... Kh7 {[%clk 0:01:19.3]} 54. Qg6+ {[%clk 0:01:23]} 54...
Kg8 {[%clk 0:01:19.8]} 55. Qe8+ {[%clk 0:01:21.7]} 55... Kh7 {[%clk 0:01:20.8]}
56. Qg6+ {[%clk 0:01:22.3]} 56... Kg8 {[%clk 0:01:21.1]} 57. Qe8+ {[%clk
0:01:17.3]} 57... Qf8 {[%clk 0:01:21.3]} 58. Qxf8+ {[%clk 0:01:17.2]} 58... Kxf8
{[%clk 0:01:22.2]} 59. Kg3 {[%clk 0:01:18.7]} 59... Kg8 {[%clk 0:01:22.4]} 60.
Kg4 {[%clk 0:01:18.4]} 60... Kh7 {[%clk 0:01:23.6]} 61. Kg5 {[%clk 0:01:19.5]}
61... Kh8 {[%clk 0:01:24.9]} 62. Kg6 {[%clk 0:01:20.5]} 62... Kg8 {[%clk
0:01:25.9]} 63. Kg5 {[%clk 0:01:19.2]} 63... Kh7 {[%clk 0:01:26.9]} 64. Kf5
{[%clk 0:01:20.4]} 64... Kh6 {[%clk 0:01:27.9]} 65. Kg4 {[%clk 0:01:22]} 65...
g5 {[%clk 0:01:28.6]} 1/2-1/2

[Event "*** Titled Tuesday 3|2 Blitz (Late)"]
[Site "Chess.com"]
[Date "2017.01.03"]
[Round "2"]
[White "Elshan1985"]
[Black "AdrianaNikolova"]
[Result "1-0"]
[WhiteElo "2587"]
[BlackElo "2243"]
[TimeControl "180+2"]
[EndTime "17:20:09 PST"]
[Termination "Elshan1985 won by resignation"]

1. Nf3 {[%clk 0:02:40.2]} 1... d5 {[%clk 0:02:59.6]} 2. g3 {[%clk 0:02:42.1]}
2... Nf6 {[%clk 0:03:00.2]} 3. Bg2 {[%clk 0:02:43.7]} 3... e6 {[%clk 0:03:02.1]}
4. O-O {[%clk 0:02:44.8]} 4... Be7 {[%clk 0:03:04]} 5. c4 {[%clk 0:02:46.1]}
5... O-O {[%clk 0:03:05.2]} 6. d4 {[%clk 0:02:47.7]} 6... dxc4 {[%clk
0:03:06.5]} 7. Ne5 {[%clk 0:02:49.2]} 7... Nc6 {[%clk 0:03:07.7]} 8. Nxc6 {[%clk
0:02:50.6]} 8... bxc6 {[%clk 0:03:09.4]} 9. Na3 {[%clk 0:02:51.1]} 9... Rb8
{[%clk 0:03:08.5]} 10. Nxc4 {[%clk 0:02:51]} 10... c5 {[%clk 0:03:09.8]} 11.
dxc5 {[%clk 0:02:36.2]} 11... Qxd1 {[%clk 0:03:11.7]} 12. Rxd1 {[%clk
0:02:36.5]} 12... Bxc5 {[%clk 0:03:12.5]} 13. b3 {[%clk 0:02:37.4]} 13... Bb7
{[%clk 0:03:05.6]} 14. Bf4 {[%clk 0:02:32.2]} 14... Bxg2 {[%clk 0:03:03.2]} 15.
Kxg2 {[%clk 0:02:34.1]} 15... Nd5 {[%clk 0:03:01.5]} 16. Be5 {[%clk 0:02:30.3]}
16... f6 {[%clk 0:03:01.4]} 17. Bb2 {[%clk 0:02:31.3]} 17... Rfd8 {[%clk
0:02:52.5]} 18. Na5 {[%clk 0:02:20]} 18... Rd6 {[%clk 0:02:25.5]} 19. Rac1
{[%clk 0:02:14.6]} 19... Bb4 {[%clk 0:02:20.4]} 20. Nc6 {[%clk 0:01:40.2]} 20...
Rb6 {[%clk 0:02:19.9]} 21. Nd4 {[%clk 0:01:41]} 21... Rd8 {[%clk 0:01:50.1]} 22.
Rd3 {[%clk 0:01:04.1]} 22... Rbd6 {[%clk 0:01:30.1]} 23. Nb5 {[%clk 0:00:59.8]}
23... R6d7 {[%clk 0:01:09.7]} 24. Nxa7 {[%clk 0:01:00.7]} 24... c5 {[%clk
0:01:08.1]} 25. Nc6 {[%clk 0:01:01.2]} 25... Ra8 {[%clk 0:01:08.9]} 26. a4
{[%clk 0:00:49.1]} 26... Rd6 {[%clk 0:01:06.6]} 27. Nxb4 {[%clk 0:00:49.6]}
27... cxb4 {[%clk 0:01:07.8]} 28. Rd4 {[%clk 0:00:47.5]} 28... Rad8 {[%clk
0:01:00.3]} 29. Rdc4 {[%clk 0:00:47.4]} 29... R8d7 {[%clk 0:00:55.6]} 30. R1c2
{[%clk 0:00:48.6]} 30... Kf7 {[%clk 0:00:55.5]} 31. Bd4 {[%clk 0:00:49.5]} 31...
Nb6 {[%clk 0:00:41.9]} 32. Bxb6 {[%clk 0:00:48.9]} 32... Rxb6 {[%clk 0:00:43.8]}
33. Rc7 {[%clk 0:00:48.8]} 33... Ke7 {[%clk 0:00:44]} 34. Rxd7+ {[%clk
0:00:49.9]} 34... Kxd7 {[%clk 0:00:45.9]} 35. Rc4 {[%clk 0:00:51.4]} 35... e5
{[%clk 0:00:44.6]} 36. e4 {[%clk 0:00:52.4]} 36... Rb7 {[%clk 0:00:39.8]} 37.
Kf3 {[%clk 0:00:53.2]} 37... Ke6 {[%clk 0:00:41.7]} 38. Ke3 {[%clk 0:00:53.8]}
38... g6 {[%clk 0:00:43.6]} 39. f4 {[%clk 0:00:54.7]} 39... exf4+ {[%clk
0:00:42.2]} 40. gxf4 {[%clk 0:00:56.6]} 40... h5 {[%clk 0:00:42.3]} 41. h4
{[%clk 0:00:56.6]} 41... Rb6 {[%clk 0:00:43.2]} 42. a5 {[%clk 0:00:53.8]} 42...
Rb5 {[%clk 0:00:41]} 43. Rc6+ {[%clk 0:00:54.8]} 43... Ke7 {[%clk 0:00:33.9]}
44. a6 {[%clk 0:00:56.1]} 44... Ra5 {[%clk 0:00:35]} 45. Kd4 {[%clk 0:00:56.5]}
45... Ra1 {[%clk 0:00:30.7]} 46. Kc5 {[%clk 0:00:57]} 46... Rc1+ {[%clk
0:00:31.3]} 47. Kb6 {[%clk 0:00:57.6]} 47... Re1 {[%clk 0:00:32.8]} 48. a7
{[%clk 0:00:58.7]} 48... Ra1 {[%clk 0:00:33.8]} 49. Rc8 {[%clk 0:00:59.2]} 49...
g5 {[%clk 0:00:35.3]} 50. fxg5 {[%clk 0:00:59.5]} 50... fxg5 {[%clk 0:00:37.2]}
1-0

[Event "*** Titled Tuesday 3|2 Blitz (Late)"]
[Site "Chess.com"]
[Date "2017.01.03"]
[Round "2"]
[White "pKiLz5Rn9b"]
[Black "Abrito99"]
[Result "0-1"]
[WhiteElo "2464"]
[BlackElo "2340"]
[TimeControl "180+2"]
[EndTime "17:20:11 PST"]
[Termination "Abrito99 won by checkmate"]

1. e4 {[%clk 0:03:02]} 1... e6 {[%clk 0:03:00.6]} 2. g3 {[%clk 0:03:02.7]} 2...
d5 {[%clk 0:03:01.9]} 3. Bg2 {[%clk 0:03:04.4]} 3... Nf6 {[%clk 0:03:02.9]} 4.
e5 {[%clk 0:03:05]} 4... Nfd7 {[%clk 0:03:04.2]} 5. d4 {[%clk 0:03:06.7]} 5...
c6 {[%clk 0:03:05.6]} 6. c3 {[%clk 0:03:08.3]} 6... c5 {[%clk 0:03:06.1]} 7. Ne2
{[%clk 0:03:09.3]} 7... Nc6 {[%clk 0:03:07.7]} 8. O-O {[%clk 0:03:09.1]} 8... b5
{[%clk 0:03:08.8]} 9. f4 {[%clk 0:03:09.9]} 9... g6 {[%clk 0:03:05.9]} 10. Nd2
{[%clk 0:03:08.7]} 10... b4 {[%clk 0:03:06.1]} 11. c4 {[%clk 0:03:09.8]} 11...
Nb6 {[%clk 0:02:55.1]} 12. cxd5 {[%clk 0:03:10.9]} 12... exd5 {[%clk 0:02:55.6]}
13. dxc5 {[%clk 0:03:11.3]} 13... Bxc5+ {[%clk 0:02:56.3]} 14. Kh1 {[%clk
0:03:13]} 14... Be6 {[%clk 0:02:55.3]} 15. Nb3 {[%clk 0:03:14]} 15... Be7 {[%clk
0:02:55.3]} 16. Ned4 {[%clk 0:03:15.3]} 16... Qd7 {[%clk 0:02:55.6]} 17. Nxc6
{[%clk 0:03:15]} 17... Qxc6 {[%clk 0:02:56.2]} 18. Nd4 {[%clk 0:03:16.6]} 18...
Qd7 {[%clk 0:02:56.7]} 19. Qd3 {[%clk 0:03:14.2]} 19... h5 {[%clk 0:02:31.2]}
20. f5 {[%clk 0:03:08.7]} 20... gxf5 {[%clk 0:02:29.6]} 21. Nxf5 {[%clk
0:03:08.4]} 21... O-O-O {[%clk 0:02:19.4]} 22. Be3 {[%clk 0:03:05.8]} 22... Kb8
{[%clk 0:02:17.4]} 23. Rac1 {[%clk 0:02:50]} 23... Rc8 {[%clk 0:02:15.8]} 24. b3
{[%clk 0:02:44.7]} 24... Rxc1 {[%clk 0:02:13]} 25. Rxc1 {[%clk 0:02:44.8]} 25...
Bxf5 {[%clk 0:02:11.3]} 26. Qa6 {[%clk 0:02:38.2]} 26... Rc8 {[%clk 0:02:12.6]}
27. Rd1 {[%clk 0:02:36.3]} 27... Bg4 {[%clk 0:02:06]} 28. Rf1 {[%clk 0:02:23.7]}
28... Be6 {[%clk 0:02:02.6]} 29. Rd1 {[%clk 0:01:56.6]} 29... Bc5 {[%clk
0:01:59.5]} 30. Bf4 {[%clk 0:01:53.2]} 30... d4 {[%clk 0:01:57.7]} 31. h4 {[%clk
0:01:47.3]} 31... Nd5 {[%clk 0:01:50.1]} 32. Bd2 {[%clk 0:01:47.5]} 32... Qb7
{[%clk 0:01:41.1]} 33. Qd3 {[%clk 0:01:40.6]} 33... Qb6 {[%clk 0:01:28.8]} 34.
Qh7 {[%clk 0:01:35.4]} 34... Ne3 {[%clk 0:01:19.6]} 35. Bxe3 {[%clk 0:01:35.8]}
35... dxe3 {[%clk 0:01:20.8]} 36. Qxh5 {[%clk 0:01:34]} 36... Rd8 {[%clk
0:01:16.3]} 37. Rf1 {[%clk 0:01:16.6]} 37... Rd2 {[%clk 0:01:14]} 38. Rc1 {[%clk
0:01:07.5]} 38... e2 {[%clk 0:01:08.4]} 39. Bf3 {[%clk 0:00:47.1]} 39... Bf2
{[%clk 0:01:01.1]} 40. Bxe2 {[%clk 0:00:38.7]} 40... Bxg3 {[%clk 0:01:01.3]} 41.
Rf1 {[%clk 0:00:21.3]} 41... Bd5+ {[%clk 0:00:50.3]} 42. Bf3 {[%clk 0:00:20.4]}
42... Rh2# {[%clk 0:00:50.7]} 0-1

[Event "*** Titled Tuesday 3|2 Blitz (Late)"]
[Site "Chess.com"]
[Date "2017.01.03"]
[Round "2"]
[White "PelinGorki"]
[Black "Hikaru"]
[Result "1/2-1/2"]
[WhiteElo "2413"]
[BlackElo "2844"]
[TimeControl "180+2"]
[EndTime "17:20:17 PST"]
[Termination "Game drawn - insufficient material"]

1. e4 {[%clk 0:03:02]} 1... c6 {[%clk 0:03:01.2]} 2. Nc3 {[%clk 0:03:03]} 2...
d5 {[%clk 0:03:03.1]} 3. Nf3 {[%clk 0:03:04.7]} 3... dxe4 {[%clk 0:03:04.1]} 4.
Nxe4 {[%clk 0:03:06.6]} 4... Nf6 {[%clk 0:03:05.2]} 5. Qe2 {[%clk 0:03:08.2]}
5... Nxe4 {[%clk 0:03:04.3]} 6. Qxe4 {[%clk 0:03:10.1]} 6... Qd5 {[%clk
0:03:04.6]} 7. Qh4 {[%clk 0:03:10.4]} 7... Qe6+ {[%clk 0:02:51.6]} 8. Be2 {[%clk
0:03:09.5]} 8... Qg4 {[%clk 0:02:52.7]} 9. Qg3 {[%clk 0:03:03.2]} 9... Qxg3
{[%clk 0:02:53.4]} 10. hxg3 {[%clk 0:03:05.1]} 10... Bf5 {[%clk 0:02:54.4]} 11.
d3 {[%clk 0:03:05.9]} 11... h6 {[%clk 0:02:55.8]} 12. Bd2 {[%clk 0:03:03.1]}
12... e6 {[%clk 0:02:56.5]} 13. O-O-O {[%clk 0:03:03.6]} 13... Nd7 {[%clk
0:02:55.5]} 14. d4 {[%clk 0:03:00.6]} 14... O-O-O {[%clk 0:02:54.8]} 15. Be3
{[%clk 0:02:58.5]} 15... Bd6 {[%clk 0:02:55.3]} 16. Bd3 {[%clk 0:02:59.2]} 16...
Bg4 {[%clk 0:02:55.3]} 17. Rde1 {[%clk 0:02:54.5]} 17... Rde8 {[%clk 0:02:52.2]}
18. Nd2 {[%clk 0:02:53.5]} 18... Bc7 {[%clk 0:02:50.4]} 19. f3 {[%clk
0:02:52.6]} 19... Bf5 {[%clk 0:02:51.6]} 20. Bxf5 {[%clk 0:02:51.9]} 20... exf5
{[%clk 0:02:53.5]} 21. Bf2 {[%clk 0:02:53.3]} 21... Nf6 {[%clk 0:02:52.8]} 22.
Nc4 {[%clk 0:02:52.4]} 22... Rxe1+ {[%clk 0:02:42.7]} 23. Rxe1 {[%clk
0:02:52.7]} 23... Nh5 {[%clk 0:02:44.2]} 24. Re7 {[%clk 0:02:35.5]} 24... Rf8
{[%clk 0:02:27.8]} 25. Ne5 {[%clk 0:02:33.8]} 25... Kd8 {[%clk 0:02:24]} 26.
Rxf7 {[%clk 0:02:29.9]} 26... Rxf7 {[%clk 0:02:24.8]} 27. Nxf7+ {[%clk
0:02:31.8]} 27... Ke7 {[%clk 0:02:26.4]} 28. Ne5 {[%clk 0:02:32.8]} 28... Ke6
{[%clk 0:02:27.6]} 29. g4 {[%clk 0:02:00.8]} 29... Nf4 {[%clk 0:02:26.8]} 30.
gxf5+ {[%clk 0:01:59.1]} 30... Kxf5 {[%clk 0:02:28.7]} 31. g4+ {[%clk
0:01:39.4]} 31... Ke6 {[%clk 0:02:29.8]} 32. Kd2 {[%clk 0:01:37.4]} 32... a6
{[%clk 0:01:44.2]} 33. Nd3 {[%clk 0:01:35.4]} 33... Nh3 {[%clk 0:01:41.5]} 34.
Be3 {[%clk 0:01:31.6]} 34... Kd5 {[%clk 0:01:39.7]} 35. Nc5 {[%clk 0:01:27.7]}
35... Nf4 {[%clk 0:01:30.3]} 36. Bxf4 {[%clk 0:01:23.9]} 36... Bxf4+ {[%clk
0:01:31]} 37. Kd3 {[%clk 0:01:25.6]} 37... g6 {[%clk 0:01:29.4]} 38. c4+ {[%clk
0:00:14.8]} 38... Kd6 {[%clk 0:01:30.6]} 39. Ke4 {[%clk 0:00:16.7]} 39... Bc1
{[%clk 0:01:30.8]} 40. Nxb7+ {[%clk 0:00:16.7]} 40... Ke7 {[%clk 0:01:32]} 41.
Nc5 {[%clk 0:00:17.2]} 41... h5 {[%clk 0:01:32.3]} 42. gxh5 {[%clk 0:00:17.6]}
42... gxh5 {[%clk 0:01:34.2]} 43. f4 {[%clk 0:00:19]} 43... h4 {[%clk
0:01:35.4]} 44. Kf3 {[%clk 0:00:20.2]} 44... Bxb2 {[%clk 0:01:35.4]} 45. Nxa6
{[%clk 0:00:19.1]} 45... Bxd4 {[%clk 0:01:35.9]} 46. Nb4 {[%clk 0:00:20.3]}
46... Kd6 {[%clk 0:01:37]} 47. Kg4 {[%clk 0:00:19.3]} 47... Kc5 {[%clk 0:01:38]}
48. Nxc6 {[%clk 0:00:05.5]} 48... Kxc6 {[%clk 0:01:39]} 49. Kxh4 {[%clk
0:00:06.9]} 49... Kc5 {[%clk 0:01:40.9]} 50. Kg5 {[%clk 0:00:08.3]} 50... Kxc4
{[%clk 0:01:42.8]} 51. f5 {[%clk 0:00:09.9]} 51... Kb4 {[%clk 0:01:44.2]} 52. f6
{[%clk 0:00:11.4]} 52... Ka3 {[%clk 0:01:45.9]} 53. f7 {[%clk 0:00:11.8]} 53...
Bc5 {[%clk 0:01:47.8]} 54. f8=B {[%clk 0:00:11]} 54... Kxa2 {[%clk 0:01:48.1]}
1/2-1/2

[Event "*** Titled Tuesday 3|2 Blitz (Late)"]
[Site "Chess.com"]
[Date "2017.01.03"]
[Round "2"]
[White "MattyDPerrine"]
[Black "andresgv36"]
[Result "1-0"]
[WhiteElo "2252"]
[BlackElo "2292"]
[TimeControl "180+2"]
[EndTime "17:20:32 PST"]
[Termination "MattyDPerrine won on time"]

1. d4 {[%clk 0:03:02]} 1... Nf6 {[%clk 0:03:00.7]} 2. Nf3 {[%clk 0:03:02.4]}
2... d5 {[%clk 0:03:00]} 3. c4 {[%clk 0:03:03.3]} 3... c6 {[%clk 0:03:00.3]} 4.
Nc3 {[%clk 0:03:04.4]} 4... e6 {[%clk 0:03:00.3]} 5. e3 {[%clk 0:03:05.4]} 5...
Nbd7 {[%clk 0:02:59.2]} 6. Qc2 {[%clk 0:03:06.6]} 6... Bd6 {[%clk 0:02:59.1]} 7.
Bd2 {[%clk 0:03:07.5]} 7... O-O {[%clk 0:02:59.3]} 8. g4 {[%clk 0:03:08.7]} 8...
b5 {[%clk 0:02:48.9]} 9. cxb5 {[%clk 0:02:47.1]} 9... c5 {[%clk 0:02:48.2]} 10.
g5 {[%clk 0:02:47.7]} 10... Ne8 {[%clk 0:02:38.1]} 11. e4 {[%clk 0:02:27.2]}
11... Bb7 {[%clk 0:02:25.1]} 12. dxc5 {[%clk 0:02:19.2]} 12... Nxc5 {[%clk
0:02:21.6]} 13. exd5 {[%clk 0:02:18.7]} 13... exd5 {[%clk 0:02:19.9]} 14. Nd4
{[%clk 0:01:53.5]} 14... Rc8 {[%clk 0:02:14.2]} 15. Bd3 {[%clk 0:01:36.7]} 15...
Ne4 {[%clk 0:01:36.5]} 16. f3 {[%clk 0:01:30.5]} 16... Nxg5 {[%clk 0:01:36.9]}
17. O-O-O {[%clk 0:01:25.8]} 17... Be5 {[%clk 0:01:18.6]} 18. Be3 {[%clk
0:01:08.8]} 18... Qf6 {[%clk 0:01:07.2]} 19. Qf2 {[%clk 0:00:27]} 19... Ne6
{[%clk 0:01:07.6]} 20. Bc2 {[%clk 0:00:21.9]} 20... Nd6 {[%clk 0:01:01.2]} 21.
Kb1 {[%clk 0:00:18.2]} 21... Nc4 {[%clk 0:01:00.7]} 22. Nce2 {[%clk 0:00:17.2]}
22... Bxd4 {[%clk 0:00:35]} 23. Nxd4 {[%clk 0:00:15]} 23... Nc5 {[%clk
0:00:33.2]} 24. Bc1 {[%clk 0:00:16]} 24... g6 {[%clk 0:00:29.3]} 25. b3 {[%clk
0:00:16.2]} 25... Nd6 {[%clk 0:00:29.5]} 26. Bb2 {[%clk 0:00:17.6]} 26... Qd8
{[%clk 0:00:25.5]} 27. Ne2 {[%clk 0:00:17.6]} 27... f6 {[%clk 0:00:24.5]} 28.
Nd4 {[%clk 0:00:18.3]} 28... Qd7 {[%clk 0:00:25.2]} 29. Rhe1 {[%clk 0:00:19.7]}
29... Qf7 {[%clk 0:00:25.7]} 30. h4 {[%clk 0:00:21.1]} 30... Rce8 {[%clk
0:00:23.5]} 31. h5 {[%clk 0:00:22.6]} 31... Bc8 {[%clk 0:00:21.9]} 32. hxg6
{[%clk 0:00:22.9]} 32... hxg6 {[%clk 0:00:23.5]} 33. Rg1 {[%clk 0:00:22.2]}
33... f5 {[%clk 0:00:20]} 34. Rh1 {[%clk 0:00:21.3]} 34... Re5 {[%clk
0:00:18.8]} 35. Nc6 {[%clk 0:00:22]} 35... d4 {[%clk 0:00:17.1]} 36. Nxe5 {[%clk
0:00:22.8]} 36... Qe6 {[%clk 0:00:17]} 37. Qxd4 {[%clk 0:00:24.2]} 37... Rf6
{[%clk 0:00:17.3]} 38. Qxc5 {[%clk 0:00:25]} 1-0